Cogmind - Beta 14 @@@ ROGUE MODE // 2025.01.09 @ 22:22:49 Player: nado Result: Destroyed by 91-NN2(R) with Subdweller Laser Performance ------------- Evolutions (0) 0 Regions Visited (2) 400 Robots Destroyed (15) 75 Value Destroyed (390) 390 Prototype IDs (0) 0 Alien Tech Used (0) 0 Bonus (0) 0 TOTAL SCORE: 865 Bonus ------- None Cogmind --------- Core Integrity 0/250 Matter 271/300 Energy 93/100 System Corruption 0% Temperature Cool (12) Movement Core (150) Ox2 Location -10/Subcaves Parts ------- > --- POWER (1) -------- (None) > --- PROPULSION (2) --- (None) > --- UTILITY (2) ------ Small Storage Unit > --- WEAPON (2) ------- Light Cannon > --- INVENTORY (8) ---- Light Nuclear Core Heat Sink Improved Heat Sink Subdweller Machine Gun Subdweller Machine Gun Scrap Shield Fragment (49) Peak State ------------ > --- POWER ------------ Subdweller Power Source > --- PROPULSION ------- Aluminum Leg Aluminum Leg > --- UTILITY ---------- Small Storage Unit Light Armor Plating > --- WEAPON ----------- Medium Laser Medium Laser > --- INVENTORY -------- Light Nuclear Core Heat Sink Improved Heat Sink Medium Laser Assault Rifle Subdweller Machine Gun Light Cannon Scrap Shield Fragment [Rating: 9] Favorites ----------- Power Ion Engine Engine Ion Engine Propulsion Aluminum Leg Leg Aluminum Leg Utility Small Storage Unit Storage Small Storage Unit Processor Signal Interpreter Protection Light Armor Plating Weapon Medium Laser Energy Gun Medium Laser Ballistic Cannon Light Cannon Build | -11 -10 -10 ------- Run | Yrd Mat Sub Slots Evolved . | . . . Power . | . . . Propulsion . | . . . Utility . | . . . Weapon . | . . . Parts Attached 20 | 6 8 6 Power 5 | 1 2 2 Engine 5 | 1 2 2 Core . | . . . Reactor . | . . . Propulsion 4 | 2 2 . Treads . | . . . Leg 4 | 2 2 . Wheel . | . . . Hover . | . . . Flight . | . . . Utility 3 | 1 1 1 Device . | . . . Storage 1 | 1 . . Processor 1 | . 1 . Hackware . | . . . Protection 1 | . . 1 Artifact . | . . . Weapon 8 | 2 3 3 Energy Gun 7 | 2 3 2 Energy Cannon . | . . . Ballistic Gun . | . . . Ballistic Cannon 1 | . . 1 Launcher . | . . . Special Weapon . | . . . Impact Weapon . | . . . Slashing Weapon . | . . . Piercing Weapon . | . . . Special Melee Weapon . | . . . Unidentified Prototypes . | . . . Parts Lost 7 | . . 7 Power 1 | . . 1 Propulsion 2 | . . 2 Utility 1 | . . 1 Weapon 3 | . . 3 Highest Loss Streak 7 | . . 7 To Critical Strikes 1 | . . 1 Average Slot Usage (%) 98 | . 98 98 Engine 13 | . 14 13 Leg 27 | . 27 27 Storage 14 | . 14 14 Processor 6 | . 13 . Protection 6 | . . 13 Energy Gun 27 | . 27 27 Peak Build Rating 9 | 6 8 9 Average Rating 7 | 4 7 8 On Entrance 4 | . 6 8 Naked Turns . | . . . Heaviest Build 17 | 13 13 17 Greatest Support 20 | 20 20 20 Greatest Overweight (x) 1 | . 1 . Average Overweight (x) . | . . . Largest Inventory Capacity 8 | 8 8 8 Average Capacity 7 | 7 8 8 Most Carried 8 | 2 8 8 Average Carried 6 | 1 6 7 Final Capacity 8 | 8 8 8 Final Carried 8 | 2 8 6 Class Distribution -------------------- 100% | Mutant Dominant Class ---------------- Mutant | -10/Materials Mutant | -10/Subcaves Resources | -11 -10 -10 ----------- Run | Yrd Mat Sub Matter Collected 380 | 192 148 40 Remotely . | . . . Salvage Created 717 | . 389 328 Parts 31 | . 17 14 Haulers Intercepted . | . . . Recyclers Shooed 2 | . 2 . Parts Field Recycled . | . . . Retrieved Matter . | . . . Parts Self-Destructed 15 | . . 15 Prevented . | . . . Kills | -11 -10 -10 ------- Run | Yrd Mat Sub Combat Hostiles Destroyed 12 | . 8 4 Guns 12 | . 8 4 Classes Destroyed 5 | . 4 1 Builder 1 | . 1 . Recycler 2 | . 2 . Swarmer 3 | . 3 . Grunt 5 | . 5 . Subdweller 4 | . . 4 Best Kill Streak 4 | . 4 2 Combat Bots Only 4 | . 4 2 Max Kills in Single Turn 2 | . 2 1 Gunslinging . | . . . Exploded . | . . . Melee . | . . . Uniques/NPCs Destroyed . | . . . Combat | -11 -10 -10 -------- Run | Yrd Mat Sub Hostile Shots Fired 101 | . 55 46 Missed 27 | . 14 13 Damage Taken 1090 | . 412 678 Core 266 | . 122 144 Absorbed by Shields . | . . . Core Remaining (%) 100 | 100 . . Volleys Fired 93 | . 45 48 Largest 2 | . 2 2 Hottest 100 | . 90 100 Shots Fired 180 | . 90 90 Gun 174 | . 90 84 Cannon 6 | . . 6 Launcher . | . . . Special . | . . . Kinetic 6 | . . 6 Thermal 174 | . 90 84 Explosive . | . . . Electromagnetic . | . . . Robot Hit Streak 21 | . 8 21 Robot Miss Streak 7 | . 7 1 Penetration Max . | . . . Secondary Targets . | . . . Shots Hit Robots 136 | . 58 78 Core Hits 36 | . 21 15 Critical Kills . | . . . Critical Parts Destroyed . | . . . Critical Strikes 11 | . 5 6 Burn 11 | . 5 6 Melee Attacks . | . . . Impact . | . . . Slashing . | . . . Piercing . | . . . Sneak Attacks . | . . . Combat Hostiles . | . . . Follow-up Attacks . | . . . Damage Inflicted 1468 | . 733 735 Guns 1443 | . 723 720 Cannons 15 | . . 15 Explosions . | . . . Melee . | . . . Ramming 10 | . 10 . Kinetic 15 | . . 15 Thermal 1443 | . 723 720 Explosive . | . . . Electromagnetic . | . . . Impact . | . . . Slashing . | . . . Piercing . | . . . Highest Corruption . | . . . Average Corruption . | . . . Corruption Purged . | . . . Corruption Blocked . | . . . Overload Shots . | . . . Overflow Damage . | . . . Projectiles . | . . . Explosions . | . . . Melee . | . . . Knockbacks 1 | . . 1 Impact . | . . . Kinetic 1 | . . 1 Secondary . | . . . Self-Inflicted Damage . | . . . Shots . | . . . Rammed . | . . . Targets Rammed 1 | . 1 . Kicked 1 | . 1 . Crushed . | . . . Highest Temperature 372 | . 372 2 Average Temperature 116 | . 119 2 Received Heat Transfer 342 | . 162 180 Effects 1 | . 1 . Energy Bleed 1 | . 1 . Siege Activations . | . . . Robots Corrupted . | . . . Combat Hostiles . | . . . Parts Fried . | . . . Impact Corruptions . | . . . Robots Melted . | . . . Combat Hostiles . | . . . Parts Melted 3 | . 1 2 Heat Transferred 4726 | . 2255 2471 Parts Sabotaged . | . . . Parts Stolen . | . . . Parts Stripped . | . . . Power Chain Reactions . | . . . Alert | -11 -10 -10 ------- Run | Yrd Mat Sub Peak Influence 329 | . 329 . Initial . | . . . Average 163 | . 174 . Maximum Alert Level 1 | . 1 . Low Security (%) 79 | 100 77 . Level 1 20 | . 22 . Level 2 . | . . . Level 3 . | . . . Level 4 . | . . . Level 5 . | . . . High Security . | . . . Max Security . | . . . Squads Dispatched 2 | . 2 . Investigation 1 | . 1 . Extermination . | . . . Reinforcement 1 | . 1 . Assault . | . . . Garrison . | . . . Intercept . | . . . Searches Triggered . | . . . Construction Impeded . | . . . Haulers Reinforced . | . . . Active Scanning Responses . | . . . Cargo Convoy Interrupts . | . . . Stealth | -11 -10 -10 --------- Run | Yrd Mat Sub Distress Signals 1 | . 1 . Communications Jammed . | . . . Distress Signals . | . . . Times Spotted 24 | . 18 6 Peak Tracking Total 7 | . 7 2 Tactical Retreats 3 | . 3 . Traps | -11 -10 -10 ------- Run | Yrd Mat Sub Traps Triggered 4 | . 4 . Indirectly . | . . . Trap Hack Attempts . | . . . Triggered . | . . . Disarmed . | . . . Reprogrammed . | . . . Reused . | . . . Traps Extracted . | . . . Installed . | . . . Triggered . | . . . Machines | -11 -10 -10 ---------- Run | Yrd Mat Sub Machines Disabled . | . . . Max in Single Turn . | . . . Machines Repaired . | . . . Machines Dismantled . | . . . Machines Sabotaged . | . . . Overloaded Fab Kills . | . . . Hacking | -11 -10 -10 --------- Run | Yrd Mat Sub Machines Accessed 4 | . 3 1 Terminals 3 | . 3 . Fabricators . | . . . Repair Stations . | . . . Recycling Units . | . . . Scanalyzers . | . . . Garrison Access . | . . . Total Hacks 13 | . 9 4 Successful 8 | . 4 4 Failed 5 | . 5 . Catastrophic 1 | . 1 . Database Lockouts . | . . . Manual 9 | . 9 . Terminals 9 | . 9 . Fabricators . | . . . Repair Stations . | . . . Recycling Units . | . . . Scanalyzers . | . . . Garrison Access . | . . . Terminal Hacks 6 | . 2 4 Record 4 | . . 4 Branch Access Points 2 | . 2 . Fabricator Hacks . | . . . Repair Station Hacks . | . . . Recycling Unit Hacks . | . . . Scanalyzer . | . . . Garrison Access Hacks . | . . . Unauthorized Hacks 2 | . 2 . Terminals 2 | . 2 . Botnet 2 | . 2 . Fabricators . | . . . Repair Stations . | . . . Recycling Units . | . . . Scanalyzers . | . . . Garrison Access . | . . . Data Cores Recovered . | . . . Used . | . . . Hacking Detections 3 | . 3 . Full Trace Events . | . . . Feedback Events . | . . . Feedback Blocked . | . . . Robot Schematics Acquired . | . . . Robots Built . | . . . Authchips . | . . . Time . | . . . Total Robot Build Rating . | . . . Part Schematics Acquired . | . . . Parts Built . | . . . Authchips . | . . . Time . | . . . Total Part Build Rating . | . . . Parts Repaired . | . . . Time . | . . . Parts Recycled . | . . . Recycled Matter . | . . . Retrieved Matter . | . . . Retrieved Components . | . . . Parts Scanalyzed . | . . . Part Schematics Acquired . | . . . Parts Damaged . | . . . Bothacking | -11 -10 -10 ------------ Run | Yrd Mat Sub Used RIF Installer . | . . . Robots Hacked . | . . . Non-combat . | . . . Combat . | . . . Robot Hacks Applied . | . . . Relay Couplers Released . | . . . Fabnet Peak Effective % . | . . . Robots Rewired . | . . . Allies Hacked . | . . . Hacks Repelled . | . . . Allies | -11 -10 -10 -------- Run | Yrd Mat Sub Total Allies . | . . . Largest Group . | . . . Highest-Rated Group . | . . . Highest-Rated Ally . | . . . Total Orders . | . . . Ally Attacks . | . . . Total Damage . | . . . Kills . | . . . Allies Corrupted . | . . . Allies Melted . | . . . Intel | -11 -10 -10 ------- Run | Yrd Mat Sub Robot Analysis Total . | . . . Derelict Logs Recovered 2 | . . 2 Drone Launches . | . . . Drone Recoveries . | . . . Exploration | -11 -10 -10 ------------- Run | Yrd Mat Sub Turns Passed 1580 | 54 796 730 Spaces Moved 796 | 37 286 473 Core 1 | 1 . . Treads . | . . . Legs 795 | 36 286 473 Wheels . | . . . Hover . | . . . Flight . | . . . Fastest Speed 50 | 50 120 120 Average Speed 120 | 118 121 120 Slowest Speed 190 | 120 190 120 Overloaded Moves . | . . . Propulsion Burnouts . | . . . Robots Hopped . | . . . Cave-ins Triggered . | . . . Exploration Rate (%) 26 | 3 52 24 Regions Visited 2 Branch Regions 1 Pre-discovered Areas . | . . . Known Exits Taken 1 | . 1 . Unknown Exits Taken 1 | 1 . . Scrap Searched . | . . . Spaces Dug . | . . . Terrain Destroyed . | . . . Melee . | . . . Projectile . | . . . AOE . | . . . Terrain Rammed . | . . . Walls Destroyed . | . . . Machines Disabled . | . . . Actions | -11 -10 -10 --------- Run | Yrd Mat Sub Total 1238 | 44 641 553 Wait 304 | . 293 11 Move 794 | 36 285 473 Hop . | . . . Pick Up 15 | 2 7 6 Fast Attach 13 | 6 7 . Attach 3 | . . 3 Detach . | . . . Swap 4 | . 1 3 Drop 9 | . 2 7 Fire 93 | . 45 48 Melee . | . . . Ram . | . . . Kick 1 | . 1 . Crush . | . . . Escape Stasis . | . . . Rewire 2 | . . 2 Trap . | . . . Miscellaneous . | . . . Route ------- -11/Scrapyard -10/Materials (discovered 4 exits: *Mat / *Min x2 / *Sub) -10/Subcaves History --------- Turn | Location | Event 9 | -11/Scrapyard | Discovered new exit (range 15) 55 | -11/Scrapyard | Entered Materials 77 | -10/Materials | Identified exit to Mines 313 | -10/Materials | Build established: Mutant 442 | -10/Materials | Discovered new exit (range 16) 484 | -10/Materials | Identified exit to Materials 831 | -10/Materials | Discovered new exit (range 4) 850 | -10/Materials | Identified exit to Subcaves 851 | -10/Materials | Entered Subcaves 863 | -10/Subcaves | Learned location of 1 exit from Materials 960 | -10/Subcaves | Visited Clippyterm 963 | -10/Subcaves | Learned 40 Factory zone layouts 963 | -10/Subcaves | Learned Factory stockpile data 981 | -10/Subcaves | Learned Materials stockpile data 1155 | -10/Subcaves | Ambushed by Subdwellers from Twisted Machinery 1477 | -10/Subcaves | Core integrity fell below 50% 1536 | -10/Subcaves | Shifting Twisted Machinery released Sub. Monowheel 1539 | -10/Subcaves | Shifting Twisted Machinery released Sub. Beam Cannon 1568 | -10/Subcaves | Core integrity fell below 20% 1581 | -10/Subcaves | Destroyed by 91-NN2(R) with Subdweller Laser Last Messages --------------- 01478_ 0I-NXC(R) destroyed. 01487_ PS-2A3(R) suffers critical hit (Burn). 01497_ PS-2A3(R) affixes Scrap Shield Fragment to Scrap Shield. 01499_ PS-2A3(R) destroyed. 01503_ Dropped Sub. Machine Gun. 01503_ Acquired Sub. Machine Gun. 01505_ Dropped Sub. Power Source. 01507_ Acquired 10 matter. Sub. Monowheel falls loose from the Twisted Machinery. Sub. Beam Cannon falls loose from the Twisted Machinery. 01551_ Med. Laser destroyed. 01551_ Lgt. Armor Plating destroyed. 01555_ Critical hit (Destroy). 01555_ Aluminum Leg destroyed. 01560_ XG-VR9(u) tweaks Twisted Machinery. 01561_ Aluminum Leg destroyed. 01563_ Med. Laser destroyed. 01568_ 59-TG1(R) knocked back. 01571_ Sub. Power Source destroyed. 01581_ Med. Laser destroyed. Map ----- +----------------------------------------------------+ | ###????????????##????????????????????????????????? | | ####????????# ?????????????????????????????????? | | #???????# ?????????????????????????????????? | | #?????## ?????????????????????????????????? | | ######## ????????????????????????????????? | | #### ??????????????????????????????????? | | ## #?????????????????????????????????????? | | #??????????????????????????????????????? | | #### #??????????????????????????????????????? | | # # ## #??????????????????????????????????????? | | # =&% ##?????????????????????????????????????? | | # [*%! ##????????????????????????????????????? | | # # ##???????????????????????????????????? | | ### #???????????????#???????????????????? | | #?# ##????????????? ##??????????????????? | | ## ###?????????#??? ???????????????????? | | ######## #???####??? ##? ??????????????????? | | ??????## ###### ###? ## ??????????????????? | | ??????# ## ### # # ? ????????????????? | | ??????# ## ???????????????? | | ??????# ## "] ????????????????? | | ??????# #### """"## #?????????????????? | | ??????##???# ## """""#" #??????????????????? | | ???????????## #### "R""" ##?????????????????? | | ????????????## ###??## R % " ###???????????????? | | ?????????????####?????###@ " "#?????????????? | | ????????????????????????##### """?????????????? | | ???????????????????????????????#""""?????????????? | | ?????????????????????????????????????????????????? | | ?????????????????????????????????????????????????? | | ?????????????????????????????????????????????????? | | ?????????????????????????????????????????????????? | | ?????????????????????????????????????????????????? | | ?????????????????????????????????????????????????? | | ?????????????????????????????????????????????????? | | ?????????????????????????????????????????????????? | | ?????????????????????????????????????????????????? | | ?????????????????????????????????????????????????? | | ?????????????????????????????????????????????????? | | ?????????????????????????????????????????????????? | | ?????????????????????????????????????????????????? | | ?????????????????????????????????????????????????? | | ?????????????????????????????????????????????????? | | ?????????????????????????????????????????????????? | | ?????????????????????????????????????????????????? | | ?????????????????????????????????????????????????? | | ?????????????????????????????????????????????????? | | ?????????????????????????????????????????????????? | | ?????????????????????????????????????????????????? | | ?????????????????????????????????????????????????? | +----------------------------------------------------+ Best States ------------- Heat Dissipation 25 Energy Generation 15 Energy Capacity 250 Matter Stores 300 Matter Capacity 300 Sight Range 16 Terrain Scan Density 10 Armor Coverage 150 Evasion (%) 55 Item Schematics ----------------- None Robot Schematics ------------------ None Fabricated ------------ Nothing Alien Tech Used ----------------- None Achievements -------------- None Challenges ------------ None Game ------ Seed ExplosiveAutogunProcessor Manual? 0 Play Time 00:20:14 Cumulative 68.8 hours Start 2025.01.09 @ 21:39:39 End 2025.01.09 @ 22:22:49 Sessions 4 Manual Loads 0 Difficulty Rogue Special Mode None Game No. 46 Rogue 46 Adventurer 0 Explorer 0 Win Type - Total 1 Types 1/0/0/0/0/0/0/0/0 Lore% 26 Gallery% 34 Achievement% 33 Wizard Run 0 Options --------- Layout 0 ASCII 0 Keyboard 1 Movement Arrows Keybinds 0 Fullscreen 2 Font 18/Terminus Map View 76x50 Zoom Use 0% Tactical HUD 1 Map Filters NONE Filters NONE Steam 1 RUN: 09a2b55e-2a6b-4ae6-8a32-2bae524a004b